bitfinex/quotes_SOLUSD_20260211
["timestamp","ask_amount","ask_price","bid_price","bid_amount"]
[1770819699962,12.09658316,82.55,82.518,4.36745385]
[1770819701684,12.09658316,82.53,82.511,40.38]
[1770819701858,12.09658316,82.53,82.497,4.36745385]
[1770819702282,16.27314645,82.53,82.498,12.12150597]
[1770819702680,4.17656329,82.529,82.498,12.12150597]
[1770819702880,12.09658316,82.54,82.501,4.36745385]
[1770819703183,12.09658316,82.53,82.501,4.36745385]
[1770819703881,12.09658316,82.52,82.498,52.54150597]
[1770819704081,12.09658316,82.53,82.499,4.36745385]
[1770819704585,12.09658316,82.53,82.498,70.72376493]
[1770819704885,16.27314645,82.53,82.498,70.72376493]
[1770819705463,16.27314645,82.53,82.498,82.8452709]
[1770819706087,4.17656329,82.529,82.498,82.8452709]
[1770819706267,4.17656329,82.529,82.498,52.54150597]
[1770819706469,12.11563158,82.538,82.488,30.30718718]
[1770819706470,4.17656329,82.509,82.488,12.12294847]
[1770819706669,4.17656329,82.509,82.492,12.12238411]
[1770819707481,4.17656329,82.509,82.488,12.12297074]
[1770819707671,4.17656329,82.509,82.492,12.12235186]
[1770819708185,4.17656329,82.509,82.48,0.1]
[1770819708782,12.09658316,82.52,82.493,42.42784235]
[1770819709287,4.17656329,82.519,82.493,12.12224067]
[1770819709475,4.17656329,82.509,82.484,12.12345926]
[1770819709665,16.27314645,82.52,82.493,12.12224067]
[1770819709864,4.17656329,82.519,82.493,12.12224067]
[1770819710067,4.17656329,82.509,82.493,12.12224067]
[1770819710279,4.17656329,82.509,82.48,0.1]
[1770819710280,12.09658316,82.5,82.48,0.1]
[1770819710488,4.21247609,82.499,82.48,0.1]
[1770819711207,4.21247609,82.509,82.48,0.1]
[1770819712096,12.09658316,82.5,82.48,0.1]
[1770819712384,4.21247609,82.508,82.48,0.1]
[1770819712603,4.21247609,82.506,82.48,0.1]
[1770819713004,4.21247609,82.515,82.48,12.19658316]
[1770819713303,48.43291537,82.589,82.481,1.62739291]
[1770819713304,4.21247609,82.525,82.481,1.62739291]
[1770819713604,4.21247609,82.525,82.49,12.09658316]
[1770819713776,4.21247609,82.525,82.483,1.62739291]
[1770819713983,4.21247609,82.525,82.49,12.09658316]
[1770819714310,4.21247609,82.537,82.51,12.09658316]
[1770819714482,4.21247609,82.537,82.506,40.54]
[1770819714682,4.21247609,82.537,82.507,12.12018374]
[1770819714994,4.21247609,82.537,82.507,42.42064309]
[1770819716481,12.11580653,82.537,82.507,12.12018374]
[1770819716683,12.09658316,82.53,82.506,40.54]
[1770819717001,12.09658316,82.53,82.488,1.62739291]
[1770819717002,12.09658316,82.52,82.501,12.12103953]
[1770819717207,4.21247609,82.528,82.504,12.12048743]
[1770819717511,4.21247609,82.519,82.492,40.58]
[1770819718314,4.21247609,82.509,82.492,40.58]
[1770819718604,4.21247609,82.509,82.484,12.12348265]
[1770819718786,4.21247609,82.509,82.48,0.1]
[1770819719187,12.09658316,82.5,82.48,0.1]
[1770819719396,4.21247609,82.507,82.48,0.1]
[1770819719602,12.09658316,82.49,82.48,0.1]
[1770819719787,4.21247609,82.514,82.48,0.1]
[1770819719986,12.09658316,82.51,82.48,0.1]
[1770819720188,4.21247609,82.514,82.48,12.19658316]
[1770819720393,4.21247609,82.554,82.501,1.62739291]
[1770819720593,4.21247609,82.554,82.52,12.09658316]
[1770819720795,4.21247609,82.549,82.515,40.6]
[1770819720990,4.21247609,82.549,82.516,12.11886179]
[1770819721198,4.21247609,82.529,82.512,12.11943698]
[1770819721403,4.21247609,82.519,82.492,40.6]
[1770819721622,4.21247609,82.509,82.48,0.1]
[1770819722204,4.21247609,82.509,82.484,12.12352216]
[1770819722610,4.21247609,82.509,82.48,0.1]
[1770819722794,12.09658316,82.51,82.489,12.12279495]
[1770819722994,4.21247609,82.499,82.48,0.1]
[1770819723389,4.21247609,82.489,82.48,0.1]
[1770819723808,4.21247609,82.499,82.48,0.1]
[1770819723989,4.21247609,82.508,82.48,0.1]
[1770819724312,3.51929912,82.508,82.48,0.1]
[1770819725191,12.12018374,82.507,82.48,0.1]
[1770819725615,12.09658316,82.5,82.48,0.1]
[1770819726120,12.09658316,82.51,82.48,0.1]
[1770819726313,4.21247609,82.509,82.48,0.1]
[1770819726521,4.21247609,82.489,82.48,0.1]
[1770819728314,4.21247609,82.499,82.48,0.1]
[1770819728722,4.21247609,82.509,82.48,0.1]
[1770819729016,4.21247609,82.499,82.48,0.1]
[1770819729404,4.21247609,82.497,82.48,0.1]
[1770819729611,4.21247609,82.489,82.461,12.12694485]
[1770819730195,4.21247609,82.469,82.446,12.37951065]
[1770819730414,4.21247609,82.469,82.446,0.2504715]
[1770819730611,4.21247609,82.469,82.45,12.12844258]
[1770819731011,4.21247609,82.469,82.446,0.2504715]
[1770819731225,4.21247609,82.469,82.448,12.12877667]
[1770819731407,4.21247609,82.479,82.448,12.12885697]
[1770819731608,4.21247609,82.478,82.448,12.12885697]
[1770819731813,12.1242983,82.479,82.446,0.2504715]
[1770819731814,4.21247609,82.469,82.446,0.2504715]
[1770819732025,12.09658316,82.46,82.446,0.2504715]
[1770819732206,12.1242983,82.479,82.41,12.13441971]
[1770819732207,4.21247609,82.439,82.41,12.13441971]
[1770819732536,12.09658316,82.42,82.41,12.13441971]
[1770819732697,12.09658316,82.43,82.41,12.13441971]
[1770819732896,4.21247609,82.44,82.411,4.45558813]
[1770819732897,12.09658316,82.44,82.411,4.45558813]
[1770819733091,50.32,82.449,82.401,4.45558813]
[1770819733092,12.09658316,82.43,82.401,4.45558813]
[1770819733324,12.09658316,82.45,82.411,4.45558813]
[1770819733616,12.09658316,82.45,82.41,24.23097424]
[1770819733617,12.09658316,82.46,82.413,4.45558813]
[1770819733822,30.31074576,82.479,82.412,42.46954327]
[1770819733823,8.82976861,82.487,82.441,4.45558813]
[1770819733998,12.09658316,82.48,82.441,4.45558813]
[1770819734199,4.61729252,82.487,82.438,4.45558813]
[1770819734398,2.47215037,103.76,82.412,91.00616415]
[1770819734399,4.21247609,82.538,82.461,4.45558813]
[1770819734599,4.21247609,82.509,82.463,4.45558813]
[1770819734814,4.21247609,82.509,82.465,4.45558813]
[1770819735038,4.21247609,82.509,82.471,4.45558813]
[1770819735226,42.40471054,82.538,82.481,4.45558813]
[1770819735227,12.09658316,82.53,82.481,4.45558813]
[1770819735408,12.09658316,82.52,82.485,4.45558813]
[1770819735906,12.09658316,82.52,82.484,12.12356335]
[1770819735907,12.09658316,82.51,82.484,12.12356335]
[1770819736113,12.09658316,82.5,82.484,12.12356335]
[1770819736515,50.28,82.523,82.46,4.45558813]
[1770819736516,12.09658316,82.49,82.46,4.45558813]
[1770819736703,12.09658316,82.49,82.462,12.12665256]
[1770819737104,50.28,82.523,82.46,4.45558813]
[1770819737105,12.09658316,82.5,82.484,12.12356335]
[1770819737315,12.09658316,82.5,82.479,12.1242338]
[1770819737535,12.09658316,82.5,82.474,4.45558813]
[1770819737840,12.09658316,82.5,82.463,4.45558813]
[1770819738126,12.09658316,82.49,82.465,12.1263112]
[1770819738698,12.09658316,82.49,82.469,12.12569599]
[1770819738926,12.1130743,82.5,82.468,4.45558813]
[1770819739311,12.1130743,82.5,82.475,12.12488632]
[1770819739502,12.1130743,82.5,82.47,4.45558813]
[1770819739919,12.1130743,82.51,82.47,4.45558813]
[1770819740336,12.1130743,82.51,82.47,12.1130743]
[1770819740638,12.1130743,82.51,82.471,4.37301495]
[1770819740804,12.1130743,82.5,82.471,4.37301495]
[1770819741201,4.15443189,82.505,82.463,4.37301495]
[1770819741202,12.1130743,82.49,82.463,4.37301495]
[1770819741414,4.15443189,82.505,82.469,4.37301495]
[1770819741415,12.1130743,82.5,82.469,4.37301495]
[1770819741719,12.1130743,82.5,82.471,4.37301495]
[1770819742132,12.1130743,82.51,82.471,4.37301495]
[1770819742429,4.15443189,82.515,82.471,4.37301495]
[1770819742622,12.1130743,82.49,82.461,4.37301495]
[1770819742805,4.15443189,82.516,82.471,4.37301495]
[1770819743004,12.1130743,82.5,82.471,4.37301495]
[1770819743636,50.18,82.519,82.474,4.37301495]
[1770819743833,12.1130743,82.5,82.474,4.37301495]
[1770819744214,12.1130743,82.5,82.472,12.12532738]
[1770819744420,12.1130743,82.49,82.464,4.37301495]
[1770819745222,16.26750619,82.51,82.473,4.37301495]
[1770819745429,16.26750619,82.51,82.472,12.12532738]
[1770819745430,12.1130743,82.5,82.472,12.12532738]
[1770819745627,12.1130743,82.5,82.465,4.37301495]
[1770819745937,4.15443189,82.489,82.455,4.37301495]
[1770819746266,4.2827483,82.499,82.465,4.46971921]
[1770819746616,12.1130743,82.49,82.465,4.46971921]
[1770819746813,11.6130743,82.49,82.465,4.46971921]
[1770819747012,4.2827483,82.499,82.465,4.46971921]
[1770819747209,16.3958226,82.51,82.465,4.46971921]
[1770819747414,12.11990284,82.509,82.465,4.46971921]
[1770819747644,12.11990284,82.509,82.466,12.12620958]
[1770819747814,16.3958226,82.51,82.471,4.46971921]
[1770819748142,28.51563133,82.51,82.471,4.46971921]
[1770819748307,12.1130743,82.5,82.471,4.46971921]
[1770819748732,12.1130743,82.5,82.437,48.5217139]
[1770819748733,16.40255703,82.51,82.276,19.62164502]
[1770819748734,4.23992081,82.479,82.276,19.62164502]
[1770819749029,4.15554638,82.396,82.205,7.71906243]
[1770819749213,12.1130743,82.29,82.274,2.21294935]
[1770819749464,4.61729252,82.29,82.205,7.71906243]
[1770819749642,54.62,82.319,82.205,7.71906243]
[1770819749643,4.61729252,82.27,82.205,7.71906243]
[1770819749824,4.61729252,82.27,82.156,48.68754562]
[1770819749825,4.61729252,82.237,82.19,12.1130743]
[1770819750031,4.61729252,82.237,82.132,7.73114802]
[1770819750032,12.1130743,82.22,82.16,12.1130743]
[1770819750227,13.89168482,82.236,82.18,12.1130743]
[1770819750465,309.95879367,82.269,82.14,12.1130743]
[1770819750466,5.36086188,82.238,82.201,4.49999999]
[1770819750640,4.2827483,82.236,82.17,12.1130743]
[1770819750840,5.36086188,82.221,82.16,12.1130743]
[1770819751039,4.2827483,82.222,82.19,12.1130743]
[1770819751227,4.61729252,82.234,82.19,12.1130743]
[1770819751420,5.36086188,82.23,82.19,12.1130743]
[1770819751629,4.61729252,82.231,82.19,12.1130743]
[1770819751920,5.36086188,82.23,82.19,12.1130743]
[1770819752124,4.61729252,82.229,82.19,12.1130743]
[1770819752345,8.90004082,82.229,82.163,12.17092852]
[1770819752545,4.61729252,82.216,82.171,4.46971921]
[1770819752850,5.36086188,82.183,82.14,4.46971921]
[1770819753049,5.36086188,82.183,82.098,48.72204984]
[1770819753050,4.61729252,82.195,82.15,4.46971921]
[1770819753255,4.61729252,82.195,82.16,12.1130743]
[1770819753542,4.61729252,82.205,82.17,12.1130743]
[1770819753763,4.61729252,82.205,82.164,4.46971921]
[1770819753950,4.61729252,82.205,82.16,12.1130743]
[1770819754244,4.61729252,82.207,82.17,12.1130743]
[1770819754449,4.61729252,82.207,82.171,12.16974358]
[1770819754831,3.32789559,82.238,82.19,12.1130743]
[1770819755034,4.61729252,82.228,82.19,12.1130743]
[1770819755238,3.32789559,82.227,82.19,12.1130743]
[1770819755443,3.32789559,82.212,82.171,12.16974358]
[1770819755632,3.32789559,82.21,82.171,12.16974358]
[1770819756032,3.32789559,82.21,82.18,12.1130743]
[1770819756355,3.32789559,82.218,82.18,12.1130743]
[1770819756552,3.32789559,82.235,82.2,12.1130743]
[1770819756739,3.32789559,82.249,82.21,12.1130743]
[1770819756937,97.1803256,82.322,82.23,12.1130743]
[1770819756938,3.32789559,82.286,82.23,12.1130743]
[1770819757144,3.32789559,82.279,82.23,12.1130743]
[1770819757326,3.32789559,82.277,82.23,12.1130743]
[1770819757530,5.36086188,82.278,82.23,12.1130743]
[1770819757531,5.36086188,82.262,82.23,12.1130743]
[1770819757831,3.32789559,82.259,82.221,12.16234295]
[1770819758161,3.32789559,82.249,82.21,12.1130743]
[1770819758336,3.32789559,82.249,82.221,12.16234295]
[1770819758833,3.32789559,82.249,82.208,4.46971921]
[1770819758834,3.32789559,82.249,82.214,12.16337671]
[1770819759025,3.32789559,82.249,82.22,24.27556218]
[1770819759231,3.32789559,82.249,82.22,12.16248788]
[1770819759426,3.32789559,82.249,82.22,24.27556218]
[1770819759677,3.32789559,82.277,82.24,11.48052956]
[1770819759958,3.32789559,82.277,82.24,24.27246508]
[1770819760327,3.32789559,82.277,82.25,12.1130743]
[1770819760533,3.32789559,82.277,82.25,8.00252524]
[1770819760860,3.32789559,82.277,82.25,12.1130743]
[1770819761233,3.32789559,82.289,82.26,12.1130743]
[1770819761448,5.36086188,82.294,82.26,12.1130743]
[1770819761938,4.61729252,82.287,82.252,12.15775908]
[1770819762937,3.32789559,82.295,82.26,12.1130743]
[1770819763141,4.61729252,82.289,82.252,12.15775908]
[1770819763557,8.68875747,82.306,82.27,12.1130743]
[1770819763872,3.32789559,82.299,82.26,12.1130743]
[1770819764152,3.32789559,82.299,82.248,4.46971921]
[1770819764153,4.61729252,82.299,82.27,12.1130743]
[1770819764363,4.61729252,82.295,82.261,2.25482088]
[1770819764544,4.2827483,82.295,82.26,12.1130743]
[1770819764859,4.61729252,82.303,82.247,12.15849818]
[1770819764860,4.2827483,82.287,82.25,12.1130743]
[1770819765065,4.2827483,82.287,82.26,12.1130743]
[1770819765436,4.2827483,82.278,82.24,12.1130743]
[1770819765638,4.2827483,82.278,82.25,12.1130743]
[1770819766046,4.2827483,82.278,82.251,12.15790689]
[1770819766441,4.2827483,82.29,82.251,12.15790689]
[1770819766762,8.90004082,82.287,82.251,12.15790689]
[1770819767066,4.2827483,82.286,82.251,12.15790689]
[1770819767746,4.2827483,82.286,82.246,12.15862772]
[1770819767946,4.2827483,82.279,82.243,12.15907898]
[1770819768164,4.2827483,82.279,82.25,12.1130743]
[1770819768344,4.2827483,82.279,82.243,12.15907898]
[1770819768767,4.2827483,82.279,82.25,12.1130743]
[1770819768957,4.2827483,82.279,82.243,12.15907898]
[1770819769358,4.2827483,82.279,82.24,12.1130743]
[1770819769567,4.2827483,82.279,82.22,16.58279351]
[1770819769568,4.2827483,82.26,82.22,16.58279351]
[1770819769749,4.2827483,82.26,82.232,12.16063571]
[1770819770148,4.2827483,82.259,82.221,12.16234295]
[1770819770861,4.4417202,82.258,82.221,12.16234295]
[1770819771264,4.4417202,82.24,82.2,12.1130743]
[1770819771463,4.4417202,82.24,82.202,12.16505127]
[1770819771647,4.4417202,82.24,82.201,4.38799943]
[1770819772168,4.4417202,82.24,82.204,12.16482458]
[1770819772341,16.5547945,82.24,82.204,12.16482458]
[1770819772672,4.4417202,82.239,82.204,12.16482458]
[1770819773569,4.61729252,82.245,82.205,4.38799943]
[1770819773798,4.4417202,82.239,82.204,12.16482458]
[1770819774068,4.4417202,82.239,82.205,4.38799943]
[1770819774496,49.94,82.248,82.207,4.38799943]
[1770819774778,4.4417202,82.25,82.206,12.16456219]
[1770819774779,4.4417202,82.249,82.211,4.38799943]
[1770819775354,4.4417202,82.249,82.211,3.81870056]
[1770819776268,4.61729252,82.237,82.155,48.68822334]
[1770819776454,4.4417202,82.22,82.18,12.1130743]
[1770819776650,16.5547945,82.23,82.19,12.1130743]
[1770819776969,4.4417202,82.23,82.19,12.1130743]
[1770819777175,16.5547945,82.23,82.19,12.1130743]
[1770819777472,16.5547945,82.23,82.191,4.38799943]
[1770819777672,4.4417202,82.225,82.191,4.38799943]
[1770819778462,4.4417202,82.225,82.192,16.55463365]
[1770819778661,4.4417202,82.225,82.192,12.16663422]
[1770819778865,4.61729252,82.234,82.193,4.38799943]
[1770819779065,9.05901272,82.234,82.193,4.38799943]
[1770819779663,16.5547945,82.23,82.193,4.38799943]
[1770819779868,4.4417202,82.219,82.192,12.16663422]
[1770819780250,12.1130743,82.24,82.2,12.1130743]
[1770819780456,4.4417202,82.236,82.201,12.16530212]
[1770819780650,4.61729252,82.235,82.201,12.16530212]
[1770819780956,12.1130743,82.23,82.196,4.38799943]
[1770819781172,12.1130743,82.23,82.201,12.16530212]
[1770819781467,12.1130743,82.23,82.183,4.38799943]
[1770819781660,12.1130743,82.22,82.195,12.16617445]
[1770819781854,12.1130743,82.2,82.171,4.38799943]
[1770819782371,12.1130743,82.2,82.162,12.17107665]
[1770819782777,12.1130743,82.19,82.163,4.38799943]
[1770819782974,12.1130743,82.19,82.162,12.17107665]
[1770819783277,4.4417202,82.199,82.142,4.38799943]
[1770819783278,4.4417202,82.186,82.142,4.38799943]
[1770819783485,4.4417202,82.184,82.153,12.17237262]
[1770819783810,12.1130743,82.18,82.142,4.38799943]
[1770819784082,12.1130743,82.15,82.13,0.1]
[1770819784284,9.05901272,82.17,82.131,16.56367]
[1770819784487,4.4417202,82.164,82.131,42.614847]
[1770819784785,12.1130743,82.15,82.13,0.1]
[1770819784970,4.61729252,82.165,82.133,4.38799943]
[1770819784971,12.1130743,82.16,82.133,4.38799943]
[1770819785153,12.1130743,82.16,82.132,12.17552232]
[1770819785367,12.1130743,82.16,82.131,12.17566594]
[1770819785566,4.4417202,82.201,82.151,4.38799943]
[1770819785880,12.1130743,82.17,82.151,4.06571034]
[1770819786064,12.1130743,82.17,82.131,12.17566594]
[1770819786465,12.1130743,82.16,82.13,0.1]
[1770819786681,12.1130743,82.17,82.13,12.2130743]
[1770819787256,4.61729252,82.166,82.13,0.1]
[1770819787563,12.1130743,82.16,82.13,0.1]
[1770819787768,12.1130743,82.17,82.131,4.38799943]
[1770819787966,4.4417202,82.18,82.141,4.38799943]
[1770819787967,12.1130743,82.18,82.141,4.38799943]
[1770819788182,12.1130743,82.17,82.141,4.38799943]
[1770819788587,12.17003979,82.169,82.143,4.38799943]
[1770819788807,12.1130743,82.17,82.143,4.38799943]
[1770819788991,24.28300919,82.17,82.143,4.38799943]
[1770819789498,12.1130743,82.17,82.134,4.38799943]
[1770819789668,12.1130743,82.15,82.13,0.1]
[1770819791700,2.47215037,103.98,82.13,0.1]
[1770819791701,4.4417202,82.159,82.13,0.1]
[1770819791991,12.1130743,82.16,82.131,4.38799943]
[1770819792590,12.1130743,82.15,82.131,4.38799943]
[1770819792990,12.1130743,82.15,82.13,0.1]
[1770819793187,12.17152107,82.159,82.122,0.2504715]
[1770819793188,12.1130743,82.14,82.122,0.2504715]
[1770819793597,12.1130743,82.15,82.122,0.2504715]
[1770819793764,12.1130743,82.14,82.122,0.2504715]
[1770819794272,12.1130743,82.15,82.122,0.2504715]
[1770819794473,12.1130743,82.14,82.122,0.2504715]
[1770819794896,12.1130743,82.15,82.123,12.17685666]
[1770819795076,12.1130743,82.16,82.124,4.38799943]
[1770819795277,12.1130743,82.16,82.124,3.92686735]
[1770819795797,12.17021979,82.168,82.123,42.61899832]
[1770819795798,12.1130743,82.17,82.13,12.1130743]
[1770819796668,12.1130743,82.17,82.131,42.614847]
[1770819797189,12.1130743,82.16,82.131,12.17567057]
[1770819797396,12.1130743,82.16,82.132,4.25789047]
[1770819797903,12.17003979,82.169,82.132,4.25789047]
[1770819798395,12.1130743,82.17,82.132,4.25789047]
[1770819798571,12.1130743,82.16,82.132,4.25789047]
[1770819798776,12.1130743,82.16,82.134,4.25789047]
[1770819798976,12.1130743,82.18,82.141,4.25789047]
[1770819799581,12.1130743,82.18,82.143,4.25789047]
[1770819800195,4.36527263,82.188,82.143,4.25789047]
[1770819800401,4.61729252,82.183,82.143,4.25789047]
[1770819800584,12.1130743,82.18,82.143,4.25789047]
[1770819800776,30.418436,82.187,82.145,4.0894408]
[1770819800777,4.61729252,82.187,82.145,4.0894408]
[1770819800981,12.2064345,82.2,82.161,4.0894408]
[1770819801181,12.16478952,82.205,82.161,4.0894408]
[1770819801380,12.2064345,82.19,82.161,4.0894408]
[1770819802201,12.2064345,82.2,82.161,4.0894408]
[1770819802406,12.2064345,82.2,82.162,4.0894408]
[1770819802578,4.21006684,82.209,82.162,4.0894408]
[1770819802779,12.2064345,82.2,82.162,4.0894408]
[1770819802979,4.61729252,82.207,82.164,4.0894408]
[1770819803189,4.21006684,82.209,82.171,4.0894408]
[1770819803384,16.37433309,82.208,82.171,4.0894408]
[1770819803901,12.2064345,82.2,82.171,4.0894408]
[1770819804108,4.21006684,82.208,82.171,4.0894408]
[1770819804313,4.21006684,82.208,82.181,4.0894408]
[1770819805003,4.21006684,82.208,82.174,4.0894408]
[1770819805183,30.40664667,82.219,82.174,4.0894408]
[1770819805184,12.16411828,82.209,82.174,4.0894408]
[1770819805505,12.2064345,82.21,82.174,4.0894408]
[1770819806710,12.16356443,82.213,82.174,4.0894408]
[1770819806881,30.40664667,82.219,82.181,4.35564444]
[1770819806882,4.19917896,82.219,82.181,4.35564444]
[1770819807086,12.2064345,82.22,82.183,4.35564444]
[1770819807282,12.2064345,82.21,82.183,4.35564444]
[1770819807706,4.19917896,82.218,82.183,4.35564444]
[1770819807891,12.2064345,82.22,82.183,4.35564444]
[1770819808288,4.61729252,82.223,82.191,4.35564444]
[1770819808711,12.2064345,82.22,82.191,4.35564444]
[1770819808898,4.19917896,82.219,82.181,16.52380256]
[1770819809101,12.2064345,82.21,82.181,16.52380256]
[1770819809307,4.19917896,82.209,82.176,12.16893107]
[1770819809503,12.2064345,82.2,82.176,12.16893107]
[1770819809808,4.19917896,82.209,82.182,12.16811467]
[1770819809999,4.19917896,82.209,82.175,40.78]
[1770819810306,4.19917896,82.209,82.165,4.35564444]
[1770819810307,4.15034681,82.199,82.17,12.16975237]
[1770819810509,4.15034681,82.199,82.173,12.16932525]
[1770819810713,4.15034681,82.199,82.165,57.30626817]
[1770819810916,4.15034681,82.199,82.168,12.17006757]
[1770819811097,12.2064345,82.19,82.159,12.17141324]
[1770819811406,4.15034681,82.179,82.147,40.78]
[1770819811606,4.15034681,82.179,82.139,4.39673133]
[1770819811791,12.2064345,82.18,82.148,4.39673133]
[1770819812191,4.61729252,82.19,82.161,12.17113914]
[1770819812192,4.15034681,82.186,82.161,12.17113914]
[1770819812392,12.2064345,82.18,82.152,12.17252283]
[1770819812614,12.2064345,82.18,82.155,12.1720426]
[1770819812924,12.2064345,82.18,82.151,4.39673133]
[1770819813313,4.15034681,82.184,82.153,12.17228271]
[1770819813612,12.16796661,82.183,82.153,12.17228271]
[1770819814211,4.15034681,82.184,82.154,4.48248918]
[1770819814414,12.16796661,82.183,82.154,4.48248918]
[1770819815512,12.2064345,82.18,82.154,4.48248918]
[1770819816796,4.31732799,82.159,82.129,4.48248918]
[1770819817196,4.31732799,82.159,82.132,12.17552038]
[1770819818221,12.2064345,82.16,82.131,4.48248918]
[1770819818393,12.17068352,82.165,82.131,4.48248918]
[1770819818597,12.2064345,82.16,82.131,4.48248918]
[1770819819509,49.78,82.169,82.131,4.48248918]
[1770819819716,49.78,82.169,82.141,4.48248918]
[1770819820328,49.78,82.169,82.143,4.48248918]
[1770819821017,49.78,82.169,82.101,48.71996581]
[1770819821018,4.31732799,82.168,82.126,4.48248918]
[1770819821217,12.2064345,82.17,82.142,4.48248918]
[1770819821692,30.41790572,82.189,82.142,4.48248918]
[1770819821693,4.31732799,82.188,82.142,4.48248918]
[1770819821894,4.31732799,82.179,82.142,4.48248918]
[1770819822413,12.2064345,82.17,82.142,4.48248918]
[1770819822608,12.2064345,82.17,82.131,40.84]
[1770819822609,12.16870695,82.178,82.144,4.48248918]
[1770819823411,4.31732799,82.177,82.144,4.48248918]
[1770819823619,12.2064345,82.17,82.144,4.48248918]
[1770819824006,12.2064345,82.16,82.129,12.17595197]
[1770819824209,24.37794474,82.16,82.132,12.17539588]
[1770819824599,24.37794474,82.16,82.129,4.48248918]
[1770819825319,4.31732799,82.159,82.129,4.48248918]
[1770819826334,12.17166922,82.158,82.13,12.17581882]
[1770819826618,49.8,82.166,82.131,4.48248918]
[1770819826813,49.82,82.165,82.131,4.48248918]
[1770819827018,54.13732799,82.165,82.131,4.48248918]
[1770819827622,4.31732799,82.159,82.131,4.48248918]
[1770819828521,12.17166922,82.158,82.131,4.48248918]
[1770819829219,16.48899721,82.158,82.131,4.48248918]
[1770819829522,12.17166922,82.158,82.131,16.65802201]
[1770819829924,12.17166922,82.158,82.132,4.48248918]
[1770819830315,16.6254997,82.158,82.127,12.17618672]
[1770819830618,12.17196552,82.156,82.127,4.36991448]
[1770819831212,4.45383048,82.149,82.116,4.36991448]
[1770819831435,4.45383048,82.149,82.118,12.17755601]
[1770819831923,4.45383048,82.149,82.123,4.36991448]
[1770819832220,49.88,82.152,82.123,4.36991448]
[1770819832421,4.45383048,82.149,82.122,0.2504715]
[1770819832615,12.17315089,82.148,82.123,4.36991448]
[1770819832821,12.17315089,82.148,82.123,16.54677114]
[1770819833014,12.17315089,82.148,82.124,4.36991448]
[1770819833325,49.88,82.155,82.124,4.36991448]
[1770819833326,12.17261972,82.152,82.124,4.36991448]
[1770819833905,12.2064345,82.15,82.124,4.36991448]
[1770819834108,4.45383048,82.149,82.122,0.2504715]
[1770819834304,4.45383048,82.139,82.122,0.2504715]
[1770819834517,4.45383048,82.139,82.119,25.30902622]
[1770819834708,4.45383048,82.137,82.119,25.30902622]
[1770819835110,12.17463293,82.138,82.119,25.30902622]
[1770819837024,12.2064345,82.13,82.103,4.36991448]
[1770819837237,12.2064345,82.13,82.061,166.9]
[1770819837238,4.45383048,82.119,82.088,4.36991448]
[1770819837413,4.45383048,82.119,82.088,16.55185179]
[1770819837608,12.2064345,82.11,82.088,16.55185179]
[1770819837807,12.2064345,82.11,82.079,41.02]
[1770819837808,10.2039623,82.108,82.079,41.02]
[1770819838020,8.16316984,82.107,82.079,41.02]
[1770819838218,8.16316984,82.107,82.077,30.45899798]
[1770819838219,8.16316984,82.106,82.077,30.45899798]
[1770819838537,4.45383048,82.119,82.077,30.45899798]
[1770819838538,8.16316984,82.105,82.08,12.2064345]
[1770819838735,5.47321528,82.115,82.1,12.2064345]
[1770819838930,4.45383048,82.128,82.09,12.2064345]
[1770819839237,4.45383048,82.128,82.069,109.66343934]
[1770819839238,4.45383048,82.128,82.092,42.63509233]
[1770819839835,4.5,82.119,82.092,12.18145495]
[1770819840132,4.5,82.119,82.083,30.4568973]
[1770819840133,4.5,82.119,82.083,71.4968973]
[1770819840328,4.5,82.119,82.092,12.18145495]
[1770819840637,4.5,82.129,82.092,42.63509233]
[1770819840821,49.94,82.136,82.1,12.2064345]
[1770819841137,4.5,82.135,82.101,12.1801196]
[1770819841344,4.5,82.129,82.101,12.1801196]
[1770819841540,4.5,82.129,82.097,12.18066316]
[1770819841832,4.5,82.129,82.091,53.24155015]
[1770819842036,4.5,82.129,82.079,30.45845813]
[1770819842037,4.5,82.119,82.093,12.18127214]
[1770819842233,4.5,82.119,82.088,12.18196801]
[1770819842439,4.5,82.119,82.079,30.45845813]
[1770819842440,4.5,82.109,82.08,12.18311923]
[1770819842639,4.5,82.109,82.078,12.18348964]
[1770819842839,4.5,82.099,82.064,12.18561123]
[1770819843219,49.96,82.104,82.035,54.52680367]
[1770819843220,4.5,82.069,82.035,5.76763888]
[1770819843419,12.2064345,82.06,82.036,12.18977034]
[1770819843740,4.45383048,82.059,82.035,5.76763888]
[1770819843944,4.45383048,82.059,82.035,17.9575112]
[1770819844144,4.45383048,82.068,82.035,5.76763888]
[1770819844320,4.45383048,82.059,82.035,5.76763888]
[1770819844644,4.45383048,82.069,82.036,12.18977034]
[1770819845026,4.45383048,82.069,82.036,42.6641962]
[1770819845226,49.94,82.081,82.036,12.18977034]
[1770819845227,4.45383048,82.067,82.036,12.18977034]
[1770819845623,4.45383048,82.059,82.036,12.18977034]